bitfinex/quotes_ETHUSD_20240821
["timestamp","ask_amount","ask_price","bid_price","bid_amount"]
[1724249177556,0.00341,2613.0,2611.9,0.7]
[1724249177775,0.00341,2613.0,2612.9,3.82716]
[1724249178120,0.00341,2613.0,2612.5,0.58975793]
[1724249178444,0.00341,2613.0,2612.9,7.65432]
[1724249178659,1e-06,2614.0,2613.9,4.5257]
[1724249178863,0.1249,2615.2,2615.1,7.64788]
[1724249179183,1.532755,2616.5,2615.7,12.16918]
[1724249179397,9.2906,2617.3,2615.7,7.64612]
[1724249179601,9.2906,2616.5,2615.6,3.82317]
[1724249179894,9.2906,2616.5,2614.2,0.7]
[1724249179895,3.82292,2615.8,2614.2,0.7]
[1724249180098,3.82155,2616.8,2614.2,0.7]
[1724249180099,3.82336,2615.5,2614.2,0.7]
[1724249180253,5.461,2616.7,2614.3,5.461]
[1724249180254,3.82165,2616.7,2614.3,5.461]
[1724249180454,0.29032778,2617.6,2615.3,0.7]
[1724249180455,3.82147,2616.8,2615.3,0.7]
[1724249180666,3.82147,2616.8,2614.8,5.461]
[1724249180667,3.82118,2617.0,2615.2,3.82378]
[1724249180873,0.382118,2616.9,2615.0,0.6189996]
[1724249181045,0.382118,2616.9,2614.8,6.161]
[1724249181046,3.82285,2615.9,2614.6,3.82465]
[1724249181254,3.82285,2615.9,2614.3,5.461]
[1724249181255,3.82361,2615.4,2614.3,3.82504]
[1724249181454,3.82263,2616.0,2614.5,0.7]
[1724249181693,3.82098,2617.2,2614.5,0.7]
[1724249181694,3.82217,2616.4,2614.5,4.5248]
[1724249181998,0.10238752,2618.0,2615.6,3.82319]
[1724249181999,3.82172,2616.7,2615.6,3.82319]
[1724249182166,0.59954623,2617.0,2615.2,0.7]
[1724249182167,0.59954623,2617.0,2616.3,3.82206]
[1724249182366,0.00238752,2618.0,2616.0,3.82259]
[1724249182581,0.00238752,2618.0,2615.7,3.82306]
[1724249182582,3.82166,2616.7,2615.7,3.82306]
[1724249182783,12.98532,2617.4,2616.4,3.82191]
[1724249182966,3.82148,2616.8,2615.8,0.57541626]
[1724249183154,3.82111,2617.1,2615.9,3.82263]
[1724249183349,9.1646,2617.4,2615.8,0.7]
[1724249183557,9.1646,2617.4,2616.8,3.82132]
[1724249183749,9.1646,2617.4,2616.7,3.82159]
[1724249183950,12.98518,2617.4,2616.4,3.82199]
[1724249184198,9.1646,2617.4,2615.7,0.57541626]
[1724249184363,9.2083,2617.2,2615.5,0.7]
[1724249184563,9.2083,2617.2,2614.7,3.82447]
[1724249184564,9.2083,2616.2,2615.3,3.82361]
[1724249184898,9.2083,2616.2,2614.7,3.82447]
[1724249184899,3.82269,2616.0,2614.9,3.82417]
[1724249185202,9.2083,2616.2,2614.7,3.8245]
[1724249185357,9.2083,2616.2,2614.2,0.7]
[1724249185358,3.82269,2616.0,2615.0,3.82399]
[1724249185697,3.82269,2616.0,2614.5,0.7]
[1724249185698,9.103,2615.4,2614.5,3.82475]
[1724249185855,9.103,2615.4,2614.3,3.82508]
[1724249186060,9.103,2615.4,2614.2,0.49385976]
[1724249186061,3.82367,2615.3,2614.2,3.82526]
[1724249186264,3.82397,2615.1,2614.1,3.82536]
[1724249186463,3.82397,2615.1,2614.0,0.49385976]
[1724249186464,0.382397,2615.0,2614.0,0.49385976]
[1724249186711,0.382397,2615.0,2613.6,3.82601]
[1724249186712,3.82428,2614.9,2613.6,3.82601]
[1724249186884,3.82428,2614.9,2613.8,3.82573]
[1724249187213,3.82428,2614.9,2613.5,0.7]
[1724249187214,9.103,2615.4,2615.0,3.82399]
[1724249187376,9.103,2615.4,2614.9,3.82409]
[1724249187773,9.103,2615.4,2615.1,3.82392]
[1724249188569,9.103,2615.4,2614.5,0.49385976]
[1724249188814,9.103,2615.4,2613.7,3.82592]
[1724249188815,10.0133,2615.4,2614.1,3.82535]
[1724249188967,10.0133,2615.4,2613.9,3.82566]
[1724249188968,3.82369,2615.3,2614.2,3.82516]
[1724249189167,3.82369,2615.3,2613.9,0.7]
[1724249189168,3.82395,2615.1,2613.9,3.8256]
[1724249189377,10.0133,2615.4,2613.6,0.7]
[1724249189378,13.83693,2615.4,2613.6,1.19385976]
[1724249189594,0.1403,2614.9,2614.4,0.7]
[1724249189814,0.1403,2614.9,2614.8,7.64876]
[1724249189995,0.1403,2614.9,2614.7,3.82439]
[1724249190314,0.1403,2614.9,2614.7,3.82443]
[1724249190471,0.1403,2614.9,2614.8,7.64876]
[1724249190809,0.1403,2614.9,2614.7,3.8245]
[1724249190975,0.1403,2614.9,2614.6,3.82463]
[1724249191183,0.1403,2614.9,2614.4,0.7]
[1724249191184,0.1403,2614.9,2614.4,3.82486]
[1724249191404,0.1403,2614.9,2614.0,3.82553]
[1724249191628,3.96467,2614.9,2613.8,3.82572]
[1724249191777,9.508767,2614.8,2613.3,0.7]
[1724249191969,9.508767,2614.8,2613.2,3.82668]
[1724249191970,3.8254,2614.2,2613.2,3.82668]
[1724249192170,3.82566,2614.0,2613.0,3.82692]
[1724249192623,9.4728,2614.3,2613.6,3.82613]
[1724249192786,9.4728,2614.3,2613.8,3.82572]
[1724249192968,9.4728,2614.3,2612.9,5.461]
[1724249192969,9.4728,2614.3,2611.9,0.7]
[1724249193173,9.3139,2612.5,2611.5,3.82915]
[1724249193432,9.3139,2612.5,2611.7,3.82885]
[1724249193564,9.3139,2612.5,2611.7,0.7]
[1724249193806,9.2562,2613.3,2612.0,0.7]
[1724249193997,3.82725,2612.9,2611.6,0.7]
[1724249194201,3.82725,2612.9,2611.4,5.461]
[1724249194202,3.82776,2612.5,2611.3,0.7]
[1724249194448,3.82776,2612.5,2611.2,3.82959]
[1724249194449,3.82816,2612.3,2611.2,3.82959]
[1724249194619,3.82843,2612.1,2611.2,3.82956]
[1724249194815,9.2562,2612.6,2611.7,3.82891]
[1724249195129,13.08385,2612.6,2611.4,0.7]
[1724249195333,12.99509,2613.7,2612.5,3.82765]
[1724249195531,12.99509,2613.7,2612.6,0.92069362]
[1724249195736,9.169,2613.7,2612.6,1.62069362]
[1724249195938,9.169,2613.7,2612.9,3.82711]
[1724249196109,12.99508,2613.7,2612.5,5.461]
[1724249196312,3.82628,2613.5,2612.7,3.82733]
[1724249196654,12.99508,2613.7,2613.0,3.82699]
[1724249196655,9.169,2613.7,2613.0,3.82699]
[1724249196830,9.169,2613.7,2612.8,0.5418985]
[1724249197150,9.169,2613.7,2610.3,1.99879556]
[1724249197151,9.169,2613.7,2612.4,4.3697385]
[1724249197299,3.82666,2613.3,2612.4,4.3697385]
[1724249197529,9.169,2613.7,2612.9,0.7]
[1724249197764,0.1403,2614.9,2612.9,0.7]
[1724249197765,9.5284,2614.6,2613.7,3.82588]
[1724249198079,9.5284,2614.6,2614.0,3.82545]
[1724249198275,9.5284,2614.6,2613.8,3.82584]
[1724249198481,3.82536,2614.2,2613.2,3.82662]
[1724249198637,10.48124,2614.6,2613.1,0.5418985]
[1724249198985,3.82609,2613.7,2612.7,3.82736]
[1724249199281,0.95284,2614.6,2612.6,3.8276]
[1724249199282,13.08895,2613.6,2612.6,3.8276]
[1724249199432,9.2628,2613.6,2612.3,0.5418985]
[1724249199635,13.08897,2613.6,2612.6,3.82749]
[1724249199832,3.82659,2613.3,2612.4,3.82788]
[1724249200059,3.82661,2613.3,2612.4,0.5418985]
[1724249200422,3.82801,2612.4,2611.4,3.82925]
[1724249200611,3.82819,2612.2,2611.2,3.82961]
[1724249200779,3.82849,2612.0,2611.0,3.82988]
[1724249201111,3.82819,2612.2,2611.3,0.49676453]
[1724249201262,9.6924,2612.3,2611.6,3.82906]
[1724249201467,9.6924,2612.3,2611.9,3.82853]
[1724249201789,9.6924,2612.3,2611.7,0.49676453]
[1724249201790,9.6924,2612.3,2611.7,4.32556453]
[1724249201974,9.6924,2612.3,2611.9,4.32526453]
[1724249202176,9.5768,2612.9,2612.0,0.7]
[1724249202508,9.5768,2612.9,2612.4,3.82788]
[1724249202711,3.8274,2612.8,2611.8,3.82866]
[1724249203009,3.8274,2612.8,2611.6,0.382906]
[1724249203010,10.53448,2612.9,2611.5,0.49676453]
[1724249203235,10.53448,2612.9,2611.2,3.82962]
[1724249203236,9.5768,2612.1,2611.2,3.82962]
[1724249203510,9.5768,2612.1,2611.8,3.82865]
[1724249203720,4.78486,2612.9,2611.9,3.82861]
[1724249203721,3.82723,2612.9,2611.9,3.82861]
[1724249204017,3.82756,2612.7,2611.7,3.82881]
[1724249204315,3.8281,2612.3,2611.3,3.8294]
[1724249204806,9.4803,2612.0,2610.7,0.7]
[1724249205007,9.4803,2612.0,2611.6,3.82903]
[1724249205226,9.4803,2612.0,2611.7,3.82882]
[1724249205377,9.1503,2612.8,2612.2,3.82815]
[1724249205580,9.1503,2612.8,2611.8,0.7]
[1724249205829,9.1503,2612.8,2612.1,3.82826]
[1724249206131,9.1503,2612.8,2611.8,0.7]
[1724249206132,9.1503,2612.8,2612.2,3.82813]
[1724249206370,9.1503,2612.8,2611.8,0.7]
[1724249206486,0.05,2615.1,2611.6,0.07656099]
[1724249206487,9.3124,2613.4,2612.0,0.7]
[1724249206678,13.13893,2613.4,2612.4,3.82779]
[1724249207014,13.13893,2613.4,2611.6,9.28998]
[1724249207015,9.8954,2612.8,2611.6,3.82901]
[1724249207176,3.82755,2612.7,2611.8,3.82867]
[1724249207377,3.82755,2612.7,2611.5,0.7]
[1724249207378,3.82785,2612.5,2611.5,3.82921]
[1724249207614,3.8266,2613.3,2611.2,0.7]
[1724249207615,3.82844,2612.1,2611.2,3.82955]
[1724249207793,9.9383,2612.0,2611.2,3.82955]
[1724249208011,9.9383,2612.0,2611.8,3.82875]
[1724249208224,9.8211,2612.8,2612.1,3.8283]
[1724249208523,9.8211,2612.8,2611.9,3.82863]
[1724249208524,9.8211,2612.8,2612.4,3.82781]
[1724249208712,9.8211,2612.8,2612.4,3.8278]
[1724249208936,9.6835,2613.6,2613.0,3.82687]
[1724249209118,9.5742,2614.8,2613.2,0.7]
[1724249209300,9.5742,2614.8,2612.6,0.07653844]
[1724249209301,9.5742,2614.8,2613.8,3.82573]
[1724249209496,0.97145,2614.7,2613.8,3.82573]
[1724249209698,3.82481,2614.6,2613.7,3.82587]
[1724249209899,4.79609,2614.7,2613.6,3.82606]
[1724249210101,3.82552,2614.1,2613.0,3.82692]
[1724249210369,3.82552,2614.1,2612.5,0.3834]
[1724249210370,3.82587,2613.8,2612.8,7.65446]
[1724249210552,3.82562,2614.0,2613.0,3.82691]
[1724249210772,3.82562,2614.0,2612.5,3.82769]
[1724249210773,9.9577,2613.9,2612.5,3.82763]
[1724249211049,3.82623,2613.6,2612.2,0.4359312]
[1724249211198,1.378332,2614.0,2612.2,7.6562]
[1724249211199,3.82682,2613.2,2612.2,7.6562]
[1724249211398,9.9577,2613.5,2612.5,3.82765]
[1724249211605,9.9577,2613.5,2612.0,1.1359312]
[1724249211606,9.9577,2613.5,2612.0,0.4359312]
[1724249211918,9.7638,2612.6,2611.8,3.82865]
[1724249212318,13.59141,2612.6,2611.8,3.82865]
[1724249212520,13.59141,2612.6,2611.2,4.63914612]
[1724249212521,9.5562,2611.9,2610.9,0.7]
[1724249212703,9.5562,2611.9,2611.0,3.8299]
[1724249212903,9.5562,2611.9,2610.7,3.83036]
[1724249213218,3.82888,2611.8,2610.7,3.83033]
[1724249213460,3.82888,2611.8,2610.7,7.6606]
[1724249213755,3.82888,2611.8,2610.9,3.83007]
[1724249213901,3.82888,2611.8,2610.6,0.7]
[1724249213902,10.51182,2611.9,2610.6,0.7]
[1724249214102,10.51182,2611.9,2610.9,4.53007]
[1724249214103,9.5562,2611.9,2610.9,4.53007]
[1724249214332,13.38492,2611.9,2610.9,8.35997]
[1724249214542,13.38492,2611.9,2610.5,0.383072]
[1724249214543,9.5562,2611.9,2610.6,3.8304]
[1724249214852,9.6505,2611.3,2610.4,3.83071]
[1724249214997,9.6005,2611.3,2611.1,3.82965]
[1724249215201,9.6005,2611.3,2610.6,0.7]
[1724249215546,9.6005,2611.3,2610.5,3.83064]
[1724249215715,9.6005,2611.3,2610.6,3.83053]
[1724249215900,9.6005,2611.3,2610.3,4.53093]
[1724249216328,9.6005,2611.3,2610.4,3.83077]
[1724249216580,9.6005,2611.3,2610.4,3.8307]
[1724249216740,9.6005,2611.3,2610.3,0.7]
[1724249216927,9.6005,2611.3,2610.1,3.83125]
[1724249217148,1.34299,2611.2,2610.2,3.83099]
[1724249217335,1.34299,2611.2,2610.0,0.7]
[1724249217336,3.82992,2611.1,2610.0,4.53138]
[1724249217552,3.83023,2610.9,2609.9,3.83156]
[1724249217954,3.82999,2611.0,2609.7,0.7]
[1724249218154,3.83011,2610.9,2609.7,0.7]
[1724249218357,9.6277,2610.7,2609.7,4.53184]
[1724249218538,9.6277,2610.7,2609.4,0.7]
[1724249218871,9.6277,2610.7,2609.7,3.83173]
[1724249219024,9.1517,2610.6,2609.1,3.83263]
[1724249219226,3.83108,2610.3,2609.4,3.83229]
[1724249219424,9.1517,2610.1,2608.6,0.7]
[1724249219667,1.298278,2610.3,2608.6,0.7]
[1724249219668,9.5549,2609.6,2608.7,3.83321]
[1724249220057,13.38691,2609.6,2608.6,0.7]
[1724249220385,3.83247,2609.3,2608.1,3.8342]
[1724249220679,3.8318,2609.8,2607.7,0.7]
[1724249220680,9.5549,2608.6,2607.7,0.7]
[1724249220845,9.5549,2608.6,2607.3,35.0]
[1724249220846,3.83403,2608.3,2607.4,0.7]
[1724249221178,3.83237,2609.4,2606.6,3.8364]
[1724249221179,9.6381,2607.5,2606.6,3.8364]
[1724249221477,5.461,2608.7,2606.6,3.8364]
[1724249221478,9.3186,2608.6,2607.8,0.7]
[1724249221636,9.3186,2608.6,2608.2,3.83404]
[1724249221826,9.3186,2608.6,2607.8,0.7]
[1724249221827,9.3186,2608.6,2607.8,3.83461]
[1724249222026,9.3186,2608.6,2607.8,4.601559]
[1724249222219,9.3186,2608.6,2607.6,0.7]
[1724249222456,9.3186,2608.6,2607.8,3.8345]
[1724249222991,9.3186,2608.6,2607.9,0.07179657]
[1724249223325,9.3186,2608.6,2607.0,6.83573]
[1724249223326,9.3186,2608.6,2607.7,0.7]
[1724249223724,9.3186,2608.6,2607.8,0.07196909]
[1724249224139,3.83403,2608.3,2607.8,0.07196909]
[1724249224377,9.3186,2608.6,2608.0,3.83434]
[1724249224671,9.3186,2608.6,2607.9,3.83438]
[1724249224890,9.3186,2608.6,2608.3,0.7]
[1724249225028,1.14941,2610.9,2609.2,0.7]
[1724249225029,9.6467,2610.7,2609.2,0.7]
[1724249225224,9.6467,2610.7,2609.3,0.07663579]
[1724249225423,9.6467,2610.7,2609.2,0.7]
[1724249225424,9.6467,2610.7,2610.1,3.83125]
[1724249225678,9.6467,2610.7,2609.7,0.7]
[1724249225905,3.83079,2610.5,2608.9,0.7]
[1724249226050,9.6467,2610.7,2609.5,3.83203]
[1724249226051,4.79524,2610.6,2609.5,3.83203]
[1724249226232,9.6467,2610.7,2609.5,0.7]
[1724249226474,9.6467,2610.7,2609.6,3.83199]
[1724249226770,9.6467,2610.7,2609.5,4.53213]
[1724249226771,9.64574193,2610.7,2609.5,4.53213]
[1724249226975,9.64574193,2610.7,2609.5,3.83213]
[1724249227185,9.64574193,2610.7,2610.4,3.83082]
[1724249227323,9.64574193,2610.7,2610.5,3.83061]
[1724249227528,3.82749,2612.7,2610.6,3.83042]
[1724249227835,3.82749,2612.7,2610.5,1.466143]
[1724249227836,3.8284,2612.1,2610.5,0.766143]
[1724249227999,3.82893,2611.7,2610.6,3.83042]
[1724249228289,3.82893,2611.7,2610.0,4.38706894]
[1724249228290,3.82836,2612.1,2610.0,0.47912551]
[1724249228426,3.82836,2612.1,2609.0,13.46545]
[1724249228427,3.82995,2611.0,2609.4,0.7]
[1724249228627,3.8297,2611.2,2610.2,3.8311]
[1724249228982,3.829,2611.7,2609.8,4.53168]
[1724249229181,0.3829,2611.6,2609.9,3.83152]
[1724249229482,3.82931,2611.5,2610.4,3.83082]
[1724249229775,9.3086,2611.4,2610.5,0.07661155]
[1724249230073,9.3086,2611.4,2610.2,3.83105]
[1724249230237,9.3086,2611.4,2610.5,3.83066]
[1724249230426,9.3086,2611.4,2610.3,3.83097]
[1724249230626,3.82965,2611.2,2610.1,4.53121]
[1724249230847,1.313786,2611.3,2610.1,4.53121]
[1724249231096,1.313786,2611.3,2609.7,5.01092551]
[1724249231230,9.8992,2610.9,2610.3,0.7]
[1724249231425,9.3609,2611.4,2610.7,3.83033]
[1724249231927,9.3609,2611.4,2610.8,3.83024]
[1724249232248,5.461,2612.8,2609.9,3.8315]
[1724249232249,9.2215,2612.0,2611.4,3.82923]
[1724249232564,10.14365,2612.0,2610.7,4.53025]
[1724249232875,10.14365,2612.0,2610.1,3.0]
[1724249232876,9.2215,2611.2,2610.2,3.83111]
[1724249233028,13.05125,2611.2,2610.2,3.83111]
[1724249233224,3.82998,2611.0,2609.8,4.53161]
[1724249233427,3.82998,2611.0,2609.9,3.83151]
[1724249233428,3.83026,2610.8,2609.9,3.83151]
[1724249233740,3.83026,2610.8,2609.8,4.53161]
[1724249233741,4.213098,2610.9,2610.0,3.8314]
[1724249233944,9.7307,2610.7,2609.6,3.83193]
[1724249234146,9.7307,2610.7,2609.5,4.53209]
[1724249234460,9.7307,2610.7,2610.0,3.83131]
[1724249234663,10.7420698,2610.7,2610.1,3.83116]
[1724249234862,9.7307,2610.7,2610.1,0.7]
[1724249235067,3.83082,2610.5,2609.6,3.83196]
[1724249235232,3.8306,2610.6,2609.4,3.83226]
[1724249235488,3.83092,2610.4,2609.4,3.8322]
[1724249235789,3.83147,2610.0,2609.0,3.83281]
[1724249236023,13.73556,2610.2,2609.4,3.83217]
[1724249236024,9.9044,2610.2,2609.4,3.83217]
[1724249236208,9.9044,2610.2,2609.3,3.83244]
[1724249236587,9.9044,2610.2,2609.5,3.83214]
[1724249236855,9.9044,2610.2,2609.7,3.83183]
[1724249237001,14.72597,2610.2,2609.2,3.83254]
[1724249237184,9.9044,2610.2,2609.6,3.83199]
[1724249237488,9.9044,2610.2,2609.6,0.7]
[1724249237686,9.9044,2610.2,2609.7,3.83176]
[1724249237887,9.9044,2610.2,2609.1,3.83263]
[1724249238136,9.9044,2610.2,2609.3,3.83235]
[1724249238445,9.9044,2610.2,2609.7,3.83185]
[1724249238588,10.89484,2610.2,2609.1,3.8326]
[1724249238793,3.83135,2610.1,2609.1,3.8326]
[1724249239147,10.89484,2610.2,2608.7,3.44841606]
[1724249239148,9.9044,2610.2,2609.6,3.83191]
[1724249239741,10.89484,2610.2,2609.2,3.8325]
[1724249239917,14.72608,2610.2,2608.7,3.0]
[1724249240102,14.72608,2610.2,2609.0,3.83281]
[1724249240103,10.89484,2610.2,2609.0,3.83281]
[1724249240396,9.9203,2610.0,2608.9,3.83301]
[1724249240596,9.9203,2610.0,2608.8,3.83304]
[1724249240597,3.83196,2609.7,2608.8,3.83304]
[1724249240847,0.383196,2609.6,2608.8,3.83304]
[1724249240999,0.383196,2609.6,2608.6,4.5334]
[1724249241000,0.383196,2609.6,2608.6,3.8334]
[1724249241201,0.383196,2609.6,2608.2,0.7]
[1724249241202,9.9203,2609.5,2608.7,3.83321]
[1724249241432,9.9203,2609.5,2607.5,13.4782]
[1724249241433,9.9203,2609.5,2608.1,3.83416]
[1724249241668,9.9203,2609.5,2607.8,0.7]
[1724249241669,9.9203,2608.9,2607.9,3.83443]
[1724249241804,9.9203,2608.9,2607.5,3.83502]
[1724249241805,1.375329,2608.8,2607.5,3.83502]
[1724249242001,1.375329,2608.8,2607.2,0.7]
[1724249242002,9.9203,2608.7,2607.2,0.7]
[1724249242202,1.375329,2608.8,2607.4,3.83514]
[1724249242203,9.7771,2608.1,2607.4,3.83514]
[1724249242401,9.7771,2608.1,2607.7,3.83478]
[1724249242704,9.7771,2608.1,2607.1,3.83562]
[1724249242976,3.83453,2607.9,2607.1,3.83562]
[1724249243138,11.138202,2608.1,2607.2,3.83552]
[1724249243139,14.972542,2608.1,2607.2,3.83552]
[1724249243563,9.7771,2608.1,2607.3,0.0729536]
[1724249243861,13.61145,2608.1,2607.3,0.0729536]
[1724249244163,13.61142,2608.1,2607.0,3.83571]
[1724249244510,13.61142,2608.1,2606.6,4.53637]
[1724249244511,13.61142,2608.1,2607.2,7.67086]
[1724249244709,13.61142,2608.1,2607.2,3.83542]
[1724249245053,15.355961,2608.1,2607.3,0.0729536]
[1724249245259,15.355951,2608.1,2607.3,0.0729536]
[1724249245478,9.7771,2608.1,2607.3,0.0729536]
[1724249245748,9.7771,2608.1,2607.2,3.83542]
[1724249245749,13.61139,2608.1,2607.2,3.83542]
[1724249245952,9.7771,2608.1,2607.2,3.83542]
[1724249246179,9.7771,2608.1,2607.3,0.0729536]
[1724249246180,13.61132,2608.1,2607.3,0.0729536]
[1724249246310,3.8345,2607.9,2607.0,3.83573]
[1724249246505,3.8345,2607.9,2607.4,0.06368339]
[1724249246704,3.8345,2607.9,2607.0,3.83573]
[1724249246705,3.8345,2607.9,2607.0,3.83572]
[1724249246925,1.361132,2608.0,2607.0,3.83572]
[1724249247218,1.361132,2608.0,2606.7,1.17758273]
[1724249247219,9.7771,2608.1,2607.3,0.7]
[1724249247534,9.7771,2608.1,2607.7,3.83479]
[1724249247919,9.7771,2608.1,2607.8,0.04495245]
[1724249248404,9.7771,2608.1,2606.8,4.53604]
[1724249248606,9.7771,2608.1,2607.9,0.04469562]
[1724249248850,11.138226,2608.1,2606.9,3.7]
[1724249249111,11.138226,2608.1,2607.6,3.83485]
[1724249249112,9.7771,2608.1,2607.6,3.83485]
[1724249249342,9.7771,2608.1,2607.4,3.83515]
[1724249249608,9.7771,2608.1,2607.7,0.0448898]
[1724249249811,9.7771,2608.1,2607.8,3.83459]
[1724249250053,9.2818,2608.9,2608.1,3.83414]
[1724249250259,11.03670248,2608.9,2608.1,3.83414]
[1724249250464,9.2818,2608.9,2608.3,3.83389]
[1724249250844,9.2818,2608.9,2608.4,0.04800872]
[1724249251195,9.2818,2608.9,2608.1,3.83409]
[1724249251403,9.2818,2608.9,2608.5,0.05268888]
[1724249251546,9.2818,2608.9,2608.3,3.8339]
[1724249251743,10.593255,2608.9,2608.6,0.05256818]
[1724249251985,10.593255,2608.9,2608.1,3.83409]
[1724249252193,13.11282,2608.8,2607.5,3.835]
[1724249252429,1.311455,2608.9,2607.3,3.8353]
[1724249252430,3.83408,2608.2,2607.3,3.8353]
[1724249252600,3.83408,2608.2,2606.7,4.53617]
[1724249252601,3.83452,2607.9,2607.1,3.83565]
[1724249252896,3.83473,2607.8,2606.9,3.83584]
[1724249253258,13.3315,2608.1,2606.6,3.83634]
[1724249253454,9.4972,2608.1,2606.6,3.83638]
[1724249253806,3.83478,2607.8,2606.8,3.83602]
[1724249254023,9.0957,2607.3,2606.5,3.83655]
[1724249254149,9.0957,2607.3,2606.6,3.83632]
[1724249254467,3.83473,2607.8,2607.2,3.83553]
[1724249254468,9.1187,2607.8,2607.2,3.83553]
[1724249254672,9.1187,2607.8,2607.2,3.83544]
[1724249254992,9.1187,2607.8,2607.5,3.83497]
[1724249255146,9.1187,2607.8,2606.9,0.7]
[1724249255147,9.1187,2607.8,2607.3,3.83527]
[1724249255586,9.1187,2607.8,2606.9,3.83587]
[1724249255798,12.95344,2607.8,2606.9,3.83587]
[1724249256296,9.1187,2607.8,2606.9,3.83587]
[1724249256593,9.1187,2607.8,2607.3,3.83537]
[1724249256806,9.1187,2607.8,2607.0,0.7]
[1724249257109,12.95335,2607.8,2606.9,3.83589]
[1724249257413,9.1187,2607.8,2606.8,3.83607]
[1724249257697,9.1187,2607.8,2606.8,3.83602]
[1724249257877,9.1187,2607.8,2607.2,3.83551]
[1724249258124,9.1187,2607.8,2607.2,3.83547]
[1724249258294,9.1187,2607.8,2607.4,3.83521]
[1724249258499,9.1187,2607.8,2607.0,3.83576]
[1724249258705,0.91187,2607.7,2606.9,3.83594]
[1724249258897,0.91187,2607.7,2606.4,0.47758273]
[1724249258898,0.91187,2607.7,2606.7,3.83616]
[1724249259098,0.91187,2607.7,2606.9,3.83595]
[1724249259315,0.91187,2607.7,2606.8,3.83602]
[1724249259515,4.74675,2607.7,2606.8,7.67205]
[1724249259729,1.386545,2607.6,2606.8,3.83602]
[1724249259905,3.83526,2607.4,2606.4,3.83657]
[1724249260104,9.8493,2607.3,2605.8,3.83747]
[1724249260322,3.8359,2607.0,2605.9,3.83742]
[1724249260536,9.8493,2607.1,2606.4,3.83659]
[1724249260739,9.8493,2607.1,2605.9,1.17758273]
[1724249260740,10.46890087,2607.1,2605.9,3.83732]
[1724249260950,3.83591,2607.0,2606.1,3.83711]
[1724249261109,10.46890087,2607.1,2605.9,3.83735]
[1724249261450,10.46890087,2607.1,2606.1,3.83712]
[1724249261876,10.46890087,2607.1,2605.6,0.7]
[1724249261877,3.83666,2606.5,2605.6,0.7]
[1724249262135,3.83666,2606.5,2605.5,3.83793]
[1724249262136,9.8862,2606.9,2606.2,3.837]
[1724249262440,9.8862,2606.9,2606.4,3.83659]
[1724249262792,9.8862,2606.9,2606.2,3.837]
[1724249262987,9.7118,2607.4,2606.2,0.7]
[1724249263207,3.83562,2607.2,2606.1,3.83711]
[1724249263456,3.83562,2607.2,2606.1,3.83709]
[1724249263755,9.7118,2607.4,2606.6,3.83631]
[1724249263903,9.7118,2607.4,2606.5,3.83652]
[1724249264104,9.7118,2607.4,2606.6,0.03943284]
[1724249264505,3.83541,2607.3,2606.3,3.83673]
[1724249264705,9.7118,2607.4,2606.4,0.03951426]
[1724249265168,9.7118,2607.4,2606.7,3.83615]
[1724249265355,9.7118,2607.4,2606.5,0.04246083]
[1724249265356,3.83563,2607.2,2606.5,0.04246083]
[1724249265519,3.83563,2607.2,2606.8,1.03916889]
[1724249265762,3.83562,2607.2,2606.8,1.03916889]
[1724249265959,7.67126,2607.2,2606.8,1.03916889]
[1724249266227,3.83583,2607.0,2606.8,1.03916889]
[1724249266498,3.83593,2607.0,2606.8,1.0]
[1724249266695,3.83576,2607.1,2606.8,1.0]
[1724249266844,1.738306,2607.2,2606.8,1.0]
[1724249267048,9.7118,2607.4,2606.9,0.03908257]
[1724249267676,9.7118,2607.4,2606.8,4.83611]
[1724249267876,9.7118,2607.4,2607.0,0.04199596]
[1724249268104,9.7118,2607.4,2606.9,0.04559633]
[1724249268403,9.7118,2607.4,2606.8,4.83605]
[1724249268404,9.7118,2607.4,2607.0,0.04549562]
[1724249268755,9.7118,2607.4,2606.8,4.83603]
[1724249268977,9.7118,2607.4,2607.1,0.04539492]
[1724249269297,9.7118,2607.4,2606.9,3.83597]
[1724249269739,9.7118,2607.4,2607.0,0.04549562]
[1724249270225,9.7118,2607.4,2606.8,4.83603]
[1724249270383,9.7118,2607.4,2607.1,0.04539492]
[1724249270584,9.7118,2607.4,2606.9,3.83594]
[1724249270840,9.7118,2607.4,2607.2,0.04529423]
[1724249271035,9.7118,2607.4,2606.8,1.0]
[1724249271534,9.7118,2607.4,2606.9,0.04540469]
[1724249271535,3.83591,2607.0,2606.9,0.04540469]
[1724249271911,3.83591,2607.0,2606.8,1.0]
[1724249271912,9.0059,2607.0,2606.8,1.0]
[1724249272319,3.83365,2608.5,2606.8,1.0]
[1724249272320,9.6296,2608.5,2607.1,0.7]
[1724249272500,9.6296,2608.5,2607.6,0.7]
[1724249272714,9.6296,2608.5,2608.0,3.83434]
[1724249273026,9.6296,2608.5,2608.2,3.83405]
[1724249273451,3.83281,2609.1,2608.0,3.83434]
[1724249273452,3.83276,2609.1,2608.3,0.05215571]
[1724249273734,3.83276,2609.1,2607.8,3.83461]
[1724249273735,3.83329,2608.8,2607.8,3.83461]
[1724249273909,1.344816,2609.1,2608.4,0.05151563]
[1724249273910,9.7995,2608.5,2608.4,0.05151563]